Department Family,Entity,Pay date,Expense Type(T),Expense Area(T),Supplier(T),Transaction Number,  Amount  ,Description
NS&I,NS&I,16/08/2023,Unitary fee - Outsource partner,Commercial and Legal,Atos IT Services UK Ltd,4024109,"5,671,960.45",Unitary service charge - August 2023
NS&I,NS&I,23/08/2023,Demand-linked costs - Outsource partner,Delivery & Monitoring,Atos IT Services UK Ltd,4024179," 3,394,526.00 ",Demand link service charge - July 2023
NS&I,NS&I,16/08/2023,Maintenance and running costs - Outsource partner,Information & Technology,Atos IT Services UK Ltd,4024076," 2,895,968.00 ",Customer Experience Platform Costs
NS&I,NS&I,23/08/2023,Unitary fee - Outsource partner,B2B Government Payment Services,Atos IT Services UK Ltd,4024131," 1,425,543.87 ",Tax-free childcare service charges - August 2023
NS&I,NS&I,10/08/2023,Professional services - Other,Rainbow,IBM United Kingdom Ltd,4024000," 826,429.84 ",Strategic Integration Service enhancement and support
NS&I,NS&I,23/08/2023,Unitary fee - Outsource partner,B2B Government Payment Services,Atos IT Services UK Ltd,4024139," 721,638.14 ",Help to save service charges - August 2023
NS&I,NS&I,23/08/2023,Professional services - Other,Rainbow,IBM United Kingdom Ltd,4024148," 435,434.78 ",IT service charges June 2023
NS&I,NS&I,29/08/2023,Professional services - Other,Rainbow,IBM United Kingdom Ltd,4024143," 435,434.78 ",IT service charges July 2023
NS&I,NS&I,16/08/2023,Unitary fee - Outsource partner,B2B Government Payment Services,Atos IT Services UK Ltd,4024053," 420,398.05 ",Tax-free childcare service charges - June 2023
NS&I,NS&I,16/08/2023,Maintenance and running costs - Outsource partner,Rainbow,Atos IT Services UK Ltd,4024069," 399,646.00 ",Test environment maintenance costs
NS&I,NS&I,29/08/2023,Consultancy services,Rainbow,PA Consulting Services Ltd,4024189," 336,480.00 ",Strategic business advice and support
NS&I,NS&I,23/08/2023,Unitary fee - Outsource partner,B2B Government Payment Services,Atos IT Services UK Ltd,4024178," 380,522.80 ",Help to buy service charges August 2023
NS&I,NS&I,23/08/2023,Unitary fee - Outsource partner,B2B Government Payment Services,Atos IT Services UK Ltd,4024132," 293,092.76 ",30 Hours service charges - August 2023
NS&I,NS&I,10/08/2023,Professional services - Other,Rainbow,Actica Consulting Ltd,4024070," 258,498.42 ",Strategic Business Design support
NS&I,NS&I,02/08/2023,Maintenance and running costs - Outsource partner,Information & Technology,Atos IT Services UK Ltd,4023962," 219,550.00 ",Updating of the banking platform 
NS&I,NS&I,16/08/2023,Project costs - Outsource partner,Programme Delivery,Atos IT Services UK Ltd,4024062," 190,996.00 ",Change related support costs
NS&I,NS&I,02/08/2023,Maintenance and running costs - Outsource partner,Data & Planning,Atos IT Services UK Ltd,4024038," 190,672.00 ",Financial Promotion Approval licence costs
NS&I,NS&I,16/08/2023,Professional services - Other,Rainbow,Capgemini UK plc (SIAM Partner),4024099," 165,281.28 ",Service Integration and Management  Partner support 
NS&I,NS&I,23/08/2023,Professional services - Other,Information & Technology,Capgemini Financial Services UK Ltd (IT Partner),4024129," 150,172.51 ",IT delivery partner support
NS&I,NS&I,16/08/2023,Unitary fee - Outsource partner,B2B Government Payment Services,Atos IT Services UK Ltd,4024052," 136,693.44 ",Court Funds Office Service Charges July 2023
NS&I,NS&I,16/08/2023,Professional services - Other,Information & Technology,Capgemini Financial Services UK Ltd (IT Partner),4024128," 136,048.96 ",IT delivery partner support
NS&I,NS&I,29/08/2023,Project costs - Outsource partner,Programme Delivery,Atos IT Services UK Ltd,4024115," 131,880.00 ",Improving customer communication channels
NS&I,NS&I,29/08/2023,Advertising agency costs,Marketing Communications,Unlimited Group United Ltd,4024188," 130,135.15 ",Cost of marketing campaigns
NS&I,NS&I,16/08/2023,Project costs - Outsource partner,Programme Delivery,Atos IT Services UK Ltd,4024002," 127,906.00 ",Product enhancement
NS&I,NS&I,16/08/2023,Maintenance and running costs - Outsource partner,Change Delivery,Atos IT Services UK Ltd,4024049," 100,000.00 ",Programme management cost July 2023
NS&I,NS&I,16/08/2023,Maintenance and running costs - Outsource partner,Business Insight,Atos IT Services UK Ltd,4024063," 99,675.00 ",Data warehouse development work
NS&I,NS&I,29/08/2023,Project costs - Outsource partner,Programme Delivery,Atos IT Services UK Ltd,4024204," 89,296.00 ",Service change costs
NS&I,NS&I,16/08/2023,Business intelligence and analysis,Market Intelligence & Research,CACI Ltd,4024105," 74,286.00 ",Annual Subscription for Market Data 2023/2024
NS&I,NS&I,29/08/2023,Maintenance and running costs - Outsource partner,Finance,Atos IT Services UK Ltd,4024112," 69,850.00 ",Strategic change planning
NS&I,NS&I,10/08/2023,Direct marketing,Marketing Communications,Unlimited Group United Ltd,4024068," 61,588.12 ",Cost of marketing campaigns
NS&I,NS&I,16/08/2023,Unitary fee - Outsource partner,B2B Government Payment Services,Atos IT Services UK Ltd,4024054," 58,730.61 ",Tax-free childcare service charges - June 2023
NS&I,NS&I,16/08/2023,Unitary fee - Outsource partner,B2B Government Payment Services,Atos IT Services UK Ltd,4024056," 58,730.61 ",30 Hours service charges - June 2023
NS&I,NS&I,16/08/2023,Unitary fee - Outsource partner,B2B Government Payment Services,Atos IT Services UK Ltd,4024055," 56,967.73 ",Tax-free childcare service charges - June 2023
NS&I,NS&I,29/08/2023,Project costs - Outsource partner,Programme Delivery,Atos IT Services UK Ltd,4024192," 49,258.00 ",Infrastructure update work
NS&I,NS&I,16/08/2023,Professional services - Other,Rainbow,Bloom Procurement Services Limited,4024127," 41,580.00 ",Cost of Marketing Campaigns
NS&I,NS&I,02/08/2023,Advertising and production,Marketing Communications,Manning Gottlieb OMD,4024028," 39,735.91 ",Mandatory communications
NS&I,NS&I,02/08/2023,Advertising and production,Marketing Communications,Manning Gottlieb OMD,4024036," 39,478.34 ",Cost of marketing campaigns
NS&I,NS&I,10/08/2023,Professional services - Other,Complaint's Management,Financial Ombudsman Services,4024101," 31,500.00 ",Case Fee Charges August 2023
NS&I,NS&I,29/08/2023,Business intelligence and analysis,Market Intelligence & Research,Advertising Intelligence Ltd,4024184," 31,314.00 ",Annual subscription for marketing campaign analysis 2023/2024
NS&I,NS&I,02/08/2023,Project costs - Outsource partner,Programme Delivery,Atos IT Services UK Ltd,4023988," 30,259.00 ",Customer journey improvements
NS&I,NS&I,16/08/2023,Maintenance and running costs - Outsource partner,Information & Technology,Atos IT Services UK Ltd,4024077," 29,312.00 ",FA portal website service costs
NS&I,NS&I,29/08/2023,Demand-linked costs - Outsource partner,Delivery & Monitoring,Atos IT Services UK Ltd,4024116," 29,013.37 ",Demand link service charge - July 2023
NS&I,NS&I,16/08/2023,Unitary fee - Outsource partner,B2B Government Payment Services,Atos IT Services UK Ltd,4024089," 26,878.28 ",Help to save service charges - June 2023
